Workbook

Sheet Početak
B1: O OVOM PREDLOŠKU
B2: Putem ove radne knjige Proračun za događaj pratite Troškovi i prihodi od nekog događaja.
B3: Unesite naziv događaja i unesite podatke u tablice na radnim listovima Troškovi i Prihodi.
B4: Automatski se izračunavaju ukupni troškovi i ukupni prihodi.
B5: Sažetak dobiti i gubitka i gubitka automatski se ažuriraju na radnom listu Sažetak.
B6: Napomena:
B7: Dodatne su upute navedene u stupcu A na svakom radnom listu. Ovaj je tekst namjerno skriven. Da biste uklonili tekst, odaberite stupac A, a zatim odaberite IZBRIŠI. Da biste otkrili tekst, odaberite stupac A, a zatim promijenite boju fonta.
B8: Da biste saznali više o tablicama, pritisnite SHIFT, a zatim F10 unutar tablice pa odaberite mogućnost TABLICA, a potom ZAMJENSKI TEKST.

Sheet Troškovi
A1: U odgovarajuće tablice na ovom radnom listu unesite procijenjeno i stvarno izdatke za svaku kategoriju. Ukupni izdaci izračunavaju se automatski. U ćelijama u ovom stupcu nalaze se korisne upute za korištenje ovog radnog lista. Pomoću tipke sa strelicom prema dolje počnite s radom.
A2: U ćeliju s desne strane unesite naziv događaja da biste prilagodili naslov ovoga i drugih radnih listova. | B2: Proračun događaja za Naziv događaja
A3: Oznaka Troškovi nalazi se u ćeliji G3. | G3: Troškovi
A4: U ćeliji G4 nalazi se oznaka Procijenjeno, a u ćeliji H4 Stvarno. | G4: Procijenjeno | H4: Stvarno
A5: U ćeliji s desne strane nalazi se oznaka Ukupni troškovi. Procijenjeno ukupni izdaci izračunavaju se automatski u ćeliji G5. Stvarno Ukupni troškovi i podatkovna traka s prikazom stvarnih Ukupni troškovi automatski se ažuriraju u ćeliji H5. Sljedeća se uputa nalazi u ćeliji A7. | B5: Ukupni troškovi | G5: =SUM(C12,C20,C26,C33,G12,G20,G25) -> 1,145.00 kn | H5: =SUM(D12,D20,D26,D33,H12,H20,H25) -> 395.00 kn
A7: Unesite Troškovi Lokacije u tablicu koja počinje ćelijom s desne strane, a Troškovi Zakuske u tablicu koja počinje ćelijom F7. Sljedeća je uputa u ćeliji A14. | B7: Web-mjesto | C7: Procijenjeno | D7: Stvarno | F7: Domjenak | G7: Procijenjeno | H7: Stvarno
B8: Naknade za prostorije i dvoranu | C8: 500.00 kn | D8: 250.00 kn | F8: Hrana
B9: Osoblje na lokaciji | C9: 400.00 kn | D9: 50.00 kn | F9: Pića
B10: Oprema | F10: Stolnjaci
B11: Stolovi i sjedala | F11: Osoblje i honorari
B12: Zbroj | C12: =SUBTOTAL(109,TroškoviLokacije[Procijenjeno]) -> 900.00 kn | D12: =SUBTOTAL(109,TroškoviLokacije[Stvarno]) -> 300.00 kn | F12: Zbroj | G12: =SUBTOTAL(109,TroškoviZakuske[Procijenjeno]) -> 0.00 kn | H12: =SUBTOTAL(109,TroškoviZakuske[Stvarno]) -> 0.00 kn
A14: Unesite Troškovi Ukrasa u tablicu koja počinje ćelijom s desne strane, a Troškovi Programa u tablicu koja počinje ćelijom F14. Sljedeća je uputa u ćeliji A22. | B14: Ukrasi | C14: Procijenjeno | D14: Stvarno | F14: Program | G14: Procijenjeno | H14: Stvarno
B15: Cvijeće | C15: 200.00 kn | D15: 50.00 kn | F15: Izvođači
B16: Svjećice | F16: Govornici
B17: Rasvjeta | F17: Putovanja
B18: Baloni | F18: Hotel
B19: Papirni materijal | F19: Ostalo
B20: Zbroj | C20: =SUBTOTAL(109,TroškoviUkrasa[Procijenjeno]) -> 200.00 kn | D20: =SUBTOTAL(109,TroškoviUkrasa[Stvarno]) -> 50.00 kn | F20: Zbroj | G20: =SUBTOTAL(109,TroškoviPrograma[Procijenjeno]) -> 0.00 kn | H20: =SUBTOTAL(109,TroškoviPrograma[Stvarno]) -> 0.00 kn
A22: Unesite Troškovi Objavljivanja u tablicu koja počinje ćelijom s desne strane, a Troškovi Nagrada u tablicu koja počinje ćelijom F22. Sljedeća se uputa nalazi u ćeliji A28. | B22: Promocija | C22: Procijenjeno | D22: Stvarno | F22: Nagrade | G22: Procijenjeno | H22: Stvarno
B23: Grafički poslovi | C23: 45.00 kn | D23: 45.00 kn | F23: Vrpce/ploče/pehari
B24: Fotokopiranje/ispis | F24: Darovi
B25: Poštarina | F25: Zbroj | G25: =SUBTOTAL(109,TroškoviNagrada[Procijenjeno]) -> 0.00 kn | H25: =SUBTOTAL(109,TroškoviNagrada[Stvarno]) -> 0.00 kn
B26: Zbroj | C26: =SUBTOTAL(109,TroškoviObjavljivanja[Procijenjeno]) -> 45.00 kn | D26: =SUBTOTAL(109,TroškoviObjavljivanja[Stvarno]) -> 45.00 kn
A28: Unesite Razni Troškovi u tablicu koja počinje u ćeliji s desne strane. | B28: Razno | C28: Procijenjeno | D28: Stvarno
B29: Telefonski broj
B30: Prijevoz
B31: Zalihe tiskanica
B32: Usluge faksiranja
B33: Zbroj | C33: =SUBTOTAL(109,RazniTroškovi[Procijenjeno]) -> 0.00 kn | D33: =SUBTOTAL(109,RazniTroškovi[Stvarno]) -> 0.00 kn

Sheet Prihodi
A1: U odgovarajuće tablice na ovom radnom listu unesite procijenjeno i stvarno prihod za svaku kategoriju. Ukupni prihod izračunava se automatski. U ćelijama u ovom stupcu nalaze se korisne upute za korištenje ovog radnog lista. Pomoću tipke sa strelicom prema dolje počnite s radom.
A2: Naziv događaja automatski se ažurira u ćeliji s desne strane. | B2: =Troškovi!B2 -> Proračun događaja za Naziv događaja
A3: Oznaka Prihodi u ćeliji F3. | F3: Prihodi
A4: U ćeliji F4 nalazi se oznaka Procijenjeno, a u ćeliji G4 Stvarno. | F4: Procijenjeno | G4: Stvarno
A5: Oznaka Ukupni prihodi nalazi se u ćeliji s desne strane. Procijenjeni ukupni zbroj izračunavaju se automatski u ćeliji F5. Stvarni ukupni zbroj i podatkovna traka s prikazom stvarni ukupni zbroj automatski se ažuriraju u ćeliji G5. | B5: Ukupni prihod | F5: =SUM(Ulaznice[[#Totals],[Procijenjeni ukupni zbroj]],OglasiUProgramu[[#Totals],[Procijenjeni ukupni zbroj]],IzlagačiIProdavači[[#Totals],[Procijenjeni ukupni zbroj]],ProdajaArtikla[[#Totals],[Procijenjeni ukupni zbroj]]) -> 1,936.00 kn | G5: =SUM(Ulaznice[[#Totals],[Stvarni ukupni zbroj]],OglasiUProgramu[[#Totals],[Stvarni ukupni zbroj]],IzlagačiIProdavači[[#Totals],[Stvarni ukupni zbroj]],ProdajaArtikla[[#Totals],[Stvarni ukupni zbroj]]) -> 1,831.00 kn
A6: Oznaka Ulaznice nalazi se u ćeliji s desne strane. | B6: Ulaznice
A7: U tablicu koja počinje u ćeliji s desne stane unesite procijenjeno i stvarno broj ulaznica s cijenama. Procijenjeno i stvarno prihod od ulaznice izračunava se automatski. Sljedeća je uputa u ćeliji A12. | B7: Procijenjeno | C7: Stvarno | D7: Vrsta | E7: Cijena | F7: Procijenjeni ukupni zbroj | G7: Stvarni ukupni zbroj
B8: 300 | C8: 278 | D8: Odrasli @ | E8: 5.00 kn | F8: =B8*E8 -> 1,500.00 kn | G8: =C8*E8 -> 1,390.00 kn
B9: 197 | C9: 195 | D9: Djeca @ | E9: 2.00 kn | F9: =B9*E9 -> 394.00 kn | G9: =C9*E9 -> 390.00 kn
B10: 42 | C10: 51 | D10: Ostalo @ | E10: 1.00 kn | F10: 42.00 kn | G10: 51.00 kn
F11: =SUBTOTAL(109,Ulaznice[Procijenjeni ukupni zbroj]) -> 1,936.00 kn | G11: =SUBTOTAL(109,Ulaznice[Stvarni ukupni zbroj]) -> 1,831.00 kn
A12: Oznaka Oglasi u programu nalazi se u ćeliji s desne strane. | B12: Oglasi u programu
A13: U tablicu koja počinje u ćeliji s desne stane unesite procijenjeno i stvarno broj oglasi u programu i cijenu oglasa. Procijenjeno i stvarno prihod od oglasa izračunava se automatski. Sljedeće se upute nalaze u ćeliji A18. | B13: Procijenjeno | C13: Stvarno | D13: Vrsta | E13: Cijena | F13: Procijenjeni ukupni zbroj | G13: Stvarni ukupni zbroj
D14: Naslovnice @ | F14: =B14*E14 -> 0.00 kn | G14: =C14*E14 -> 0.00 kn
D15: Polovine stranica @ | F15: =B15*E15 -> 0.00 kn | G15: =C15*E15 -> 0.00 kn
D16: Četvrtine stranica @ | F16: 0.00 kn | G16: 0.00 kn
F17: =SUBTOTAL(109,OglasiUProgramu[Procijenjeni ukupni zbroj]) -> 0.00 kn | G17: =SUBTOTAL(109,OglasiUProgramu[Stvarni ukupni zbroj]) -> 0.00 kn
A18: U ćeliji s desne strane nalazi se oznaka Izlagači ili Dobavljači. | B18: Izlagači/dobavljači
A19: U tablicu koja počinje u ćeliji s desne stane unesite procijenjeno i stvarno broj izlagači i dobavljači te cijene štandova. Procijenjeno i stvarno prihod izračunava se automatski. Sljedeća se uputa nalazi u ćeliji A24. | B19: Procijenjeno | C19: Stvarno | D19: Vrsta | E19: Cijena | F19: Procijenjeni ukupni zbroj | G19: Stvarni ukupni zbroj
D20: Veliki štandovi @ | F20: =B20*E20 -> 0.00 kn | G20: =C20*E20 -> 0.00 kn
D21: Srednji štandovi @ | F21: =B21*E21 -> 0.00 kn | G21: =C21*E21 -> 0.00 kn
D22: Mali štandovi @ | F22: 0.00 kn | G22: 0.00 kn
F23: =SUBTOTAL(109,IzlagačiIProdavači[Procijenjeni ukupni zbroj]) -> 0.00 kn | G23: =SUBTOTAL(109,IzlagačiIProdavači[Stvarni ukupni zbroj]) -> 0.00 kn
A24: Oznaka Prodaja artikala nalazi se u ćeliji s desne strane. | B24: Prodaja artikala
A25: U tablicu koja počinje u ćeliji s desne stane unesite procijenjeno i stvarno broj prodanih artikala te cijene artikala. Procijenjeno i stvarno prihod izračunava se automatski. | B25: Procijenjeno | C25: Stvarno | D25: Vrsta | E25: Cijena | F25: Procijenjeni ukupni zbroj | G25: Stvarni ukupni zbroj
D26: Artikli @ | F26: =B26*E26 -> 0.00 kn | G26: =C26*E26 -> 0.00 kn
D27: Artikli @ | F27: =B27*E27 -> 0.00 kn | G27: =C27*E27 -> 0.00 kn
D28: Artikli @ | F28: 0.00 kn | G28: 0.00 kn
D29: Artikli @ | F29: 0.00 kn | G29: 0.00 kn
F30: =SUBTOTAL(109,ProdajaArtikla[Procijenjeni ukupni zbroj]) -> 0.00 kn | G30: =SUBTOTAL(109,ProdajaArtikla[Stvarni ukupni zbroj]) -> 0.00 kn

Sheet Sažetak
A1: Na ovom se radnom listu automatski ažuriraju Sažetak dobiti i gubitka i gubitka u kojim se prikazuju ukupni prihodi i izdaci. U ćelijama u ovom stupcu nalaze se korisne upute za korištenje ovog radnog lista. Pomoću tipke sa strelicom prema dolje počnite s radom.
A2: Naziv događaja automatski se ažurira u ćeliji s desne strane. | B2: =Troškovi!B2 -> Proračun događaja za Naziv događaja
A3: Oznaka Sažetak dobiti i gubitka nalazi se u ćeliji C3. Sljedeća je uputa u ćeliji A5. | C3: Sažetak dobiti i gubitka
A5: Tablica Zbroj zbora koja počinje u ćeliji s desne strane ažurira se automatski. Sljedeća je uputa u ćeliji A9. | B5: Zbroj | C5: Procijenjeno | D5: Stvarno
B6: Ukupni prihod | C6: =Prihodi!F5 -> 1,936.00 kn | D6: =Prihodi!G5 -> 1,831.00 kn
B7: Ukupni izdaci | C7: =Troškovi!G5 -> 1,145.00 kn | D7: =Troškovi!H5 -> 395.00 kn
B8: Ukupna dobit (ili gubitak) | C8: =C6-C7 -> 791.00 kn | D8: =D6-D7 -> 1,436.00 kn
A9: Grupirani stupčasti grafikon na kojem se prikazuje usporedba procijenjeno i stvarno ukupni prihod i ukupni izdaci nalazi se u ćeliji s desne strane. | B9: U ovoj se ćeliji nalazi grupirani stupčasti grafikon na kojem se prikazuje usporedba procijenjeno i stvarno ukupni prihod i ukupni izdaci.
